Cogmind - Beta 14 @@@ ROGUE MODE // 2024.08.13 @ 03:35:47 Player: Calasmeer Result: Destroyed by S-10 Pest with Light Assault Rifle Performance ------------- Evolutions (0) 0 Regions Visited (2) 400 Robots Destroyed (31) 155 Value Destroyed (858) 858 Prototype IDs (0) 0 Alien Tech Used (0) 0 Bonus (0) 0 TOTAL SCORE: 1413 Bonus ------- None Cogmind --------- Core Integrity 0/250 Matter 216/300 Energy 263/265 System Corruption 0% Temperature Cool (0) Movement Rolling (95) Location -10/Subcaves Parts ------- > --- POWER (1) -------- Improved Ion Engine > --- PROPULSION (2) --- Wheel Subdweller Monowheel > --- UTILITY (2) ------ Medium Storage Unit > --- WEAPON (2) ------- Beam Cannon Rocket Launcher > --- INVENTORY (10) --- Subdweller Power Source Wheel Wheel Subdweller Monowheel Improved Heat Sink Signal Interpreter Medium Armor Plating Heavy Assault Rifle Light Cannon Light Cannon Peak State ------------ > --- POWER ------------ Improved Ion Engine > --- PROPULSION ------- Wheel Subdweller Monowheel > --- UTILITY ---------- Medium Storage Unit Medium Armor Plating > --- WEAPON ----------- Beam Cannon Rocket Launcher > --- INVENTORY -------- Improved Ion Engine Wheel Wheel Wheel Improved Heat Sink Signal Interpreter Medium Armor Plating Heavy Assault Rifle Light Cannon Light Cannon [Rating: 12] Favorites ----------- Power Improved Ion Engine Engine Improved Ion Engine Propulsion Wheel Wheel Wheel Utility Medium Armor Plating Storage Medium Storage Unit Processor Visual Processing Unit Protection Medium Armor Plating Weapon Light Cannon Energy Gun Medium Laser Energy Cannon Beam Cannon Ballistic Gun Light Assault Rifle Ballistic Cannon Light Cannon Launcher Rocket Launcher Build | -11 -10 -10 ------- Run | Yrd Mat Sub Slots Evolved . | . . . Power . | . . . Propulsion . | . . . Utility . | . . . Weapon . | . . . Parts Attached 25 | 6 16 3 Power 5 | 1 4 . Engine 5 | 1 4 . Core . | . . . Reactor . | . . . Propulsion 9 | 2 5 2 Treads . | . . . Leg . | . . . Wheel 9 | 2 5 2 Hover . | . . . Flight . | . . . Utility 4 | 1 3 . Device . | . . . Storage 2 | 1 1 . Processor 1 | . 1 . Hackware . | . . . Protection 1 | . 1 . Artifact . | . . . Weapon 7 | 2 4 1 Energy Gun 2 | 1 1 . Energy Cannon 1 | . 1 . Ballistic Gun 1 | 1 . . Ballistic Cannon 2 | . 2 . Launcher 1 | . . 1 Special Weapon . | . . . Impact Weapon . | . . . Slashing Weapon . | . . . Piercing Weapon . | . . . Special Melee Weapon . | . . . Unidentified Prototypes . | . . . Parts Lost 3 | . 2 1 Power . | . . . Propulsion 1 | . 1 . Utility 1 | . . 1 Weapon 1 | . 1 . Highest Loss Streak 1 | . 1 1 To Critical Strikes . | . . . Average Slot Usage (%) 96 | . 96 99 Engine 14 | . 14 14 Wheel 27 | . 27 28 Storage 14 | . 14 14 Processor 3 | . 3 . Protection 7 | . 7 13 Energy Gun 6 | . 7 . Energy Cannon 7 | . 6 14 Ballistic Cannon 11 | . 12 . Launcher 1 | . . 13 Peak Build Rating 12 | 6 10 12 Average Rating 8 | 4 8 11 On Entrance 5 | . 6 10 Naked Turns . | . . . Heaviest Build 31 | 13 30 31 Greatest Support 30 | 20 20 30 Greatest Overweight (x) 1 | . 1 1 Average Overweight (x) . | . . . Largest Inventory Capacity 10 | 8 10 10 Average Capacity 9 | 7 8 10 Most Carried 10 | 2 10 10 Average Carried 7 | . 7 9 Final Capacity 10 | 8 10 10 Final Carried 10 | 2 9 10 Class Distribution -------------------- 97% | Mutant Dominant Class ---------------- Mutant | -10/Materials Mutant | -10/Subcaves Resources | -11 -10 -10 ----------- Run | Yrd Mat Sub Matter Collected 780 | 192 493 95 Remotely . | . . . Salvage Created 835 | . 643 192 Parts 54 | . 41 13 Haulers Intercepted . | . . . Recyclers Shooed 2 | . 2 . Parts Field Recycled . | . . . Retrieved Matter . | . . . Parts Self-Destructed 1 | . . 1 Prevented . | . . . Kills | -11 -10 -10 ------- Run | Yrd Mat Sub Combat Hostiles Destroyed 24 | . 16 8 Guns 5 | . 5 . Cannons 13 | . 11 2 AOE 6 | . . 6 Classes Destroyed 6 | . 5 1 Worker 3 | . 3 . Recycler 1 | . 1 . Watcher 3 | . 3 . Swarmer 4 | . 3 1 Grunt 13 | . 13 . Subdweller 7 | . . 7 Best Kill Streak 6 | . 6 5 Combat Bots Only 5 | . 3 5 Max Kills in Single Turn 2 | . 1 2 Gunslinging . | . . . Exploded 1 | . . 1 Melee . | . . . Uniques/NPCs Destroyed . | . . . Combat | -11 -10 -10 -------- Run | Yrd Mat Sub Hostile Shots Fired 140 | . 85 55 Missed 49 | . 21 28 Damage Taken 1053 | . 777 276 Core 254 | . 201 53 Absorbed by Shields . | . . . Core Remaining (%) 100 | 100 . . Volleys Fired 90 | . 76 14 Largest 2 | . 2 2 Hottest 95 | . 95 93 Shots Fired 173 | . 145 28 Gun 70 | . 70 . Cannon 89 | . 75 14 Launcher 14 | . . 14 Special . | . . . Kinetic 76 | . 76 . Thermal 83 | . 69 14 Explosive 14 | . . 14 Electromagnetic . | . . . Robot Hit Streak 9 | . 9 5 Robot Miss Streak 6 | . 6 2 Penetration Max . | . . . Secondary Targets . | . . . Shots Hit Robots 105 | . 90 15 Core Hits 57 | . 38 19 Critical Kills . | . . . Critical Parts Destroyed . | . . . Critical Strikes 8 | . 8 . Burn 6 | . 6 . Blast 2 | . 2 . Melee Attacks . | . . . Impact . | . . . Slashing . | . . . Piercing . | . . . Sneak Attacks . | . . . Combat Hostiles . | . . . Follow-up Attacks . | . . . Damage Inflicted 2149 | . 1432 717 Guns 589 | . 589 . Cannons 978 | . 840 138 Explosions 579 | . . 579 Melee . | . . . Ramming 3 | . 3 . Kinetic 811 | . 811 . Thermal 756 | . 618 138 Explosive 579 | . . 579 Electromagnetic . | . . . Impact . | . . . Slashing . | . . . Piercing . | . . . Highest Corruption . | . . . Average Corruption . | . . . Corruption Purged . | . . . Corruption Blocked . | . . . Overload Shots . | . . . Overflow Damage 24 | . 2 22 Projectiles 2 | . 2 . Explosions 22 | . . 22 Melee . | . . . Knockbacks 11 | . 11 . Impact . | . . . Kinetic 11 | . 11 . Secondary . | . . . Self-Inflicted Damage 47 | . 1 46 Shots 1 | . . 1 Rammed 1 | . 1 . Targets Rammed 1 | . 1 . Kicked . | . . . Crushed . | . . . Highest Temperature 321 | . 321 22 Average Temperature 88 | . 90 7 Received Heat Transfer 471 | . 381 90 Siege Activations . | . . . Robots Corrupted . | . . . Combat Hostiles . | . . . Parts Fried . | . . . Impact Corruptions . | . . . Robots Melted . | . . . Combat Hostiles . | . . . Parts Melted . | . . . Heat Transferred 2456 | . 2160 296 Parts Sabotaged . | . . . Parts Stolen . | . . . Parts Stripped . | . . . Power Chain Reactions . | . . . Alert | -11 -10 -10 ------- Run | Yrd Mat Sub Peak Influence 340 | . 340 . Initial . | . . . Average 183 | . 191 . Maximum Alert Level 1 | . 1 . Low Security (%) 53 | 100 50 . Level 1 46 | . 49 . Level 2 . | . . . Level 3 . | . . . Level 4 . | . . . Level 5 . | . . . High Security . | . . . Max Security . | . . . Squads Dispatched 4 | . 4 . Investigation 2 | . 2 . Extermination . | . . . Reinforcement 2 | . 2 . Assault . | . . . Garrison . | . . . Intercept . | . . . Searches Triggered . | . . . Construction Impeded . | . . . Haulers Reinforced . | . . . Active Scanning Responses . | . . . Cargo Convoy Interrupts . | . . . Stealth | -11 -10 -10 --------- Run | Yrd Mat Sub Distress Signals 1 | . 1 . Communications Jammed . | . . . Distress Signals . | . . . Times Spotted 39 | . 28 11 Peak Tracking Total 6 | . 4 6 Tactical Retreats 6 | . 4 2 Traps | -11 -10 -10 ------- Run | Yrd Mat Sub Traps Triggered 2 | . 2 . Indirectly . | . . . Trap Hack Attempts . | . . . Triggered . | . . . Disarmed . | . . . Reprogrammed . | . . . Reused . | . . . Traps Extracted . | . . . Installed . | . . . Triggered 3 | . . 3 Machines | -11 -10 -10 ---------- Run | Yrd Mat Sub Machines Disabled 3 | . . 3 Max in Single Turn 2 | . . 2 Machines Repaired . | . . . Machines Dismantled . | . . . Machines Sabotaged . | . . . Overloaded Fab Kills . | . . . Hacking | -11 -10 -10 --------- Run | Yrd Mat Sub Machines Accessed 6 | . 6 . Terminals 5 | . 5 . Fabricators . | . . . Repair Stations . | . . . Recycling Units 1 | . 1 . Scanalyzers . | . . . Garrison Access . | . . . Total Hacks 16 | . 16 . Successful 8 | . 8 . Failed 8 | . 8 . Catastrophic . | . . . Database Lockouts . | . . . Manual 12 | . 12 . Terminals 15 | . 15 . Fabricators . | . . . Repair Stations . | . . . Recycling Units 1 | . 1 . Scanalyzers . | . . . Garrison Access . | . . . Terminal Hacks 3 | . 3 . Part Schematic 1 | . 1 . Locate Traps 2 | . 2 . Fabricator Hacks . | . . . Repair Station Hacks . | . . . Recycling Unit Hacks 1 | . 1 . Report Inventory 1 | . 1 . Scanalyzer . | . . . Garrison Access Hacks . | . . . Unauthorized Hacks 4 | . 4 . Terminals 4 | . 4 . Botnet 4 | . 4 . Fabricators . | . . . Repair Stations . | . . . Recycling Units . | . . . Scanalyzers . | . . . Garrison Access . | . . . Data Cores Recovered . | . . . Used . | . . . Hacking Detections 4 | . 4 . Full Trace Events 2 | . 2 . Feedback Events . | . . . Feedback Blocked . | . . . Robot Schematics Acquired . | . . . Robots Built . | . . . Authchips . | . . . Time . | . . . Total Robot Build Rating . | . . . Part Schematics Acquired 1 | . 1 . Parts Built . | . . . Authchips . | . . . Time . | . . . Total Part Build Rating . | . . . Parts Repaired . | . . . Time . | . . . Parts Recycled . | . . . Recycled Matter . | . . . Retrieved Matter . | . . . Retrieved Components . | . . . Parts Scanalyzed . | . . . Part Schematics Acquired . | . . . Parts Damaged . | . . . Bothacking | -11 -10 -10 ------------ Run | Yrd Mat Sub Used RIF Installer . | . . . Robots Hacked . | . . . Non-combat . | . . . Combat . | . . . Robot Hacks Applied . | . . . Relay Couplers Released . | . . . Fabnet Peak Effective % . | . . . Robots Rewired . | . . . Allies Hacked . | . . . Hacks Repelled . | . . . Allies | -11 -10 -10 -------- Run | Yrd Mat Sub Total Allies . | . . . Largest Group . | . . . Highest-Rated Group . | . . . Highest-Rated Ally . | . . . Total Orders . | . . . Ally Attacks . | . . . Total Damage . | . . . Kills . | . . . Allies Corrupted . | . . . Allies Melted . | . . . Intel | -11 -10 -10 ------- Run | Yrd Mat Sub Robot Analysis Total . | . . . Derelict Logs Recovered 2 | . . 2 Drone Launches . | . . . Drone Recoveries . | . . . Exploration | -11 -10 -10 ------------- Run | Yrd Mat Sub Turns Passed 1634 | 62 1363 209 Spaces Moved 978 | 66 757 155 Core 4 | 4 . . Treads . | . . . Legs . | . . . Wheels 974 | 62 757 155 Hover . | . . . Flight . | . . . Fastest Speed 50 | 50 80 95 Average Speed 87 | 78 85 99 Slowest Speed 107 | 80 95 107 Overloaded Moves . | . . . Propulsion Burnouts . | . . . Robots Hopped . | . . . Cave-ins Triggered . | . . . Exploration Rate (%) 40 | 4 98 19 Regions Visited 2 Branch Regions 1 Pre-discovered Areas 1 | . . 1 Known Exits Taken . | . . . Unknown Exits Taken 2 | 1 1 . Scrap Searched . | . . . Spaces Dug 9 | . . 9 Terrain Destroyed 83 | . . 83 Melee . | . . . Projectile . | . . . AOE 83 | . . 83 Terrain Rammed . | . . . Walls Destroyed . | . . . Machines Disabled . | . . . Actions | -11 -10 -10 --------- Run | Yrd Mat Sub Total 1584 | 73 1330 181 Wait 462 | . 456 6 Move 976 | 65 756 155 Hop . | . . . Pick Up 15 | 2 12 1 Fast Attach 9 | 6 3 . Attach 1 | . 1 . Detach . | . . . Swap 15 | . 12 3 Drop 15 | . 13 2 Fire 90 | . 76 14 Melee . | . . . Ram 1 | . 1 . Kick . | . . . Crush . | . . . Escape Stasis . | . . . Rewire . | . . . Trap . | . . . Miscellaneous . | . . . Route ------- -11/Scrapyard -10/Materials (discovered 5 exits: [*Mat x3] / [*Min] / [*Sub]) -10/Subcaves (discovered 1 exit: [*Mat]) History --------- Turn | Location | Event 26 | -11/Scrapyard | Discovered new exit (range 16) 63 | -11/Scrapyard | Entered Materials 155 | -10/Materials | Discovered new exit (range 10) 273 | -10/Materials | Discovered new exit (range 12) 311 | -10/Materials | Build established: Mutant 431 | -10/Materials | Discovered new exit (range 11) 504 | -10/Materials | Core integrity fell below 50% 790 | -10/Materials | Discovered new exit (range 15) 845 | -10/Materials | Core integrity fell below 20% 1410 | -10/Materials | Discovered new exit (range 4) 1426 | -10/Materials | Entered Subcaves 1493 | -10/Subcaves | Discovered new exit (range 13) 1540 | -10/Subcaves | Learned 2 Materials zone layouts 1635 | -10/Subcaves | Destroyed by S-10 Pest with Light Assault Rifle Last Messages --------------- 01553_ BH-WC1(R) destroyed. 01568_ JH-SCU(R) destroyed. 01569_ ZG-BHM(R): "ARGHSUB!" 01571_ ZG-BHM(R) destroyed. 01579_ The unstable cave ceiling collapses. 01582_ 79-Y78(R): "ARGHSUB!" 01583_ The unstable cave ceiling collapses. 01588_ 79-Y78(R) destroyed. 01595_ Dropped Imp. Ion Engine. 01596_ Acquired Sub. Power Source. 01597_ Dropped Wheel. 01597_ Acquired 19 matter. 01598_ The unstable cave ceiling collapses. 01606_ Acquired 24 matter. 01615_ Machine disabled. 01618_ Destroyed Lgt. Ion Engine. 01618_ S-10 Pest destroyed. 01621_ Machine disabled. 01627_ Med. Armor Plating destroyed. 01628_ The unstable cave ceiling collapses. Map ----- +----------------------------------------------------+ | ???????# #####?????????####?## | | ???????# # # &! #??????????????????### | | ???????# ?### ##????????????????????## | | ???????## ?### &[ ##?????????????????????? | | ????????## ?## & ##????????????????????? | | ?????????##??# #????????????????????? | | ???????????### ##???????????????????? | | ????????# #???????????????????? | | ????????# ##?????????????????### | | ????????### ## # #?????????????????## | | ??????????## ?### ##???????????????# | | ???????????## # ???# #??????????????# ## | | ????????????###### ???# ##????????????????????? | | ????????????????? ???## ##???????????????????## | | ????????????????# ????# #???????????????????# | | ????????????????## ????# ##??????????????????## | | ?????????????????# ????# #?????????????????## | | ????????????????????????# #?????????????????# | | ???????????????????????## #?????????????????# | | ???????????????????????# #????????????????# | | ???????????????????????## #????????????????####? | | ????????????????????????# #????????????????????? | | ???????????????????????## #????????????????????? | | ???????????????????????# #????????????????????? | | ??????????????????##?### #????????????????????? | | ???????????????####"## ##@ #????????????????###?# | | ??????????????## """# #???????????????## ### | | ?????????????## """" =* #???????????????# | | ?????????????# "" " #???????????????# | | ?????????????# ##""" ##??????????????# | | ?????????????## ### ##??????????????# | | ?????????????# ####???????????????# # | | ?????????????# % #????????????????# ### | | ?????????????# # #???????????????# #? | | ?????????????# s #???????????????# #?# | | ??????????# ### # #???????????????# ? | | ????????# %# ?# %& # ##???????????????## #? | | ????????## ? ?? #! s #????????????????## ?# | | ????????# ?#??# ## # ????????????????##?# | | ???????# #?????#% ? ## = ??????????????????# | | ?????? ????????# ? ?? #????????????????? | | ????? ?????????##? ??## ???????????????? | | ????#?????????????? ???? ?????????????????? | | ?????????????????? ????? ??????????????????# | | ????????????????????????? ????????????????????? | | ?????????????????????????? ??????????????????????? | | ?????????????????????????????????????????????????? | | ?????????????????????????????????????????????????? | | ?????????????????????????????????????????????????? | | ?????????????????????????????????????????????????? | +----------------------------------------------------+ Best States ------------- Heat Dissipation 25 Energy Generation 12 Energy Capacity 265 Matter Stores 300 Matter Capacity 300 Sight Range 18 Terrain Scan Density 10 Armor Coverage 225 Evasion (%) 44 Item Schematics ----------------- Signal Interpreter | -10/Materials | Hacked Robot Schematics ------------------ None Fabricated ------------ Nothing Alien Tech Used ----------------- None Achievements -------------- None Challenges ------------ None Game ------ Seed StormCoilStatue Manual? 0 Play Time 00:16:28 Cumulative 12.3 hours Start 2024.08.13 @ 03:19:28 End 2024.08.13 @ 03:35:47 Sessions 1 Manual Loads 0 Difficulty Rogue Special Mode None Game No. 15 Rogue 14 Adventurer 0 Explorer 1 Win Type - Total 0 Types 0/0/0/0/0/0/0/0/0 Lore% 22 Gallery% 17 Achievement% 19 Wizard Run 0 Options --------- Layout 2 ASCII 0 Keyboard 0 Movement Mouse Keybinds 0 Fullscreen 2 Font 32/Smallcaps Map View 50x44 Zoom Use 0% Tactical HUD 1 Map Filters NONE Filters NONE Steam 1 RUN: ca93d362-42ff-4f98-a7f0-4e2f84877cb5